Cogmind - Beta 9.6 @@@ ROGUE MODE // 2020.07.23 @ 22:40:46 Player: dumbaq Result: Destroyed by L-31 Rogue with Katana Performance ------------- Evolutions (2) 1000 Regions Visited (3) 600 Robots Destroyed (131) 655 Value Destroyed (2997) 2997 Prototype IDs (5) 100 Alien Tech Used (0) 0 Bonus (538) 538 TOTAL SCORE: 5890 Bonus ------- High Alert Combat Kills 538 Cogmind --------- Core Integrity 0/550 Matter 284/300 Energy 67/265 System Corruption 0% Temperature Cool (71) Movement Walking (180) Ox2 Location -8/Materials Parts ------- > --- POWER (1) -------- Improved Ion Engine > --- PROPULSION (3) --- Improved Aluminum Leg > --- UTILITY (5) ------ Large Storage Unit Recoil Stabilizer > --- WEAPON (2) ------- Light Assault Rifle Mining Claw > --- INVENTORY (10) --- Flight Unit Peak State ------------ > --- POWER ------------ Light Nuclear Core > --- PROPULSION ------- Aerolev Unit Flight Unit Improved VTOL Module > --- UTILITY ---------- Improved Heat Sink Cooling System Improved Sensor Array Improved Signal Interpreter Improved Power Shielding > --- WEAPON ----------- Mining Laser Mining Claw > --- INVENTORY -------- Aerolev Unit Flight Unit Improved VTOL Module Hardened Medium Armor Plating [Rating: 27] Favorites ----------- Power Light Nuclear Core Engine Light Ion Engine Power Core Light Nuclear Core Propulsion Aluminum Leg Treads Improved Treads Leg Aluminum Leg Wheel Armored Wheel Hover Unit Aerolev Unit Flight Unit Improved VTOL Module Utility Medium Storage Unit Device Structural Scanner Storage Medium Storage Unit Processor Signal Interpreter Protection Light Armor Plating Weapon Rocket Launcher Energy Gun Medium Laser Ballistic Gun Autogun Ballistic Cannon Assault Cannon Launcher Rocket Launcher Special Weapon Mining Laser Slashing Weapon Mining Claw Special Melee Weapon Datajack Build | -11 -10 -9 -8 ------- Run | Scr Mat Mat Mat Slots Evolved 4 | . . 2 2 Power . | . . . . Propulsion 1 | . . . 1 Utility 3 | . . 2 1 Weapon . | . . . . Parts Attached 120 | 7 21 17 75 Power 11 | 1 2 1 7 Engine 6 | 1 . . 5 Core 5 | . 2 1 2 Reactor . | . . . . Propulsion 47 | 2 11 7 27 Treads 9 | . . 2 7 Leg 21 | 2 9 3 7 Wheel 2 | . . 2 . Hover 2 | . . . 2 Flight 13 | . 2 . 11 Utility 32 | 2 3 5 22 Device 10 | . . 1 9 Storage 7 | 2 2 1 2 Processor 2 | . . 1 1 Hackware . | . . . . Protection 13 | . 1 2 10 Artifact . | . . . . Weapon 30 | 2 5 4 19 Energy Gun 4 | . 1 . 3 Energy Cannon . | . . . . Ballistic Gun 9 | 2 2 . 5 Ballistic Cannon 1 | . . . 1 Launcher 12 | . 1 4 7 Special Weapon 1 | . . . 1 Impact Weapon . | . . . . Slashing Weapon 2 | . . . 2 Piercing Weapon . | . . . . Special Melee Weapon 1 | . 1 . . Unidentified Prototypes 2 | . . . 2 Parts Lost 39 | . 1 4 34 Power 3 | . . . 3 Propulsion 9 | . . 1 8 Utility 15 | . . 1 14 Weapon 12 | . 1 2 9 Highest Loss Streak 9 | . 1 1 9 Average Slot Usage (%) 94 | . 98 98 87 Engine 3 | . 7 . 3 Core 7 | . 6 11 4 Treads 6 | . . 7 12 Leg 15 | . 27 12 4 Flight 2 | . . . 6 Device 4 | . . 4 7 Storage 17 | . 24 17 9 Processor 5 | . . 10 5 Protection 10 | . 3 10 17 Energy Gun 3 | . 3 4 1 Ballistic Gun 8 | . 20 . 2 Launcher 8 | . 2 17 6 Slashing Weapon 1 | . . . 3 Naked Turns . | . . . . Heaviest Build 37 | 15 23 28 37 Greatest Support 69 | 20 20 46 69 Greatest Overweight (x) 6 | 2 2 2 6 Average Overweight (x) . | . . . . Largest Inventory Capacity 10 | 8 8 8 10 Average Capacity 7 | 6 7 8 6 Most Carried 8 | 3 8 8 8 Average Carried 5 | 1 6 6 5 Final Capacity 10 | 8 8 8 10 Final Carried 8 | 1 8 7 1 Class Distribution -------------------- 52% | Mutant 41% | Scavenger-Mutant 4% | Scavenger-Scout Dominant Class ---------------- Mutant | -10/Materials Scavenger-Mutant | -9/Materials Mutant | -8/Materials Resources | -11 -10 -9 -8 ----------- Run | Scr Mat Mat Mat Matter Collected 3175 | 342 1061 236 1536 Remotely 134 | . . . 134 Salvage Created 3561 | 148 1016 569 1828 Parts 228 | 16 61 35 116 Haulers Intercepted 3 | . 1 . 2 Recyclers Shooed 3 | . 1 1 1 Parts Field Recycled . | . . . . Retrieved Matter . | . . . . Parts Self-Destructed . | . . . . Prevented . | . . . . Kills | -11 -10 -9 -8 ------- Run | Scr Mat Mat Mat Combat Hostiles Destroyed 75 | . 12 13 50 Melee 10 | . . . 10 Guns 25 | . 11 1 13 Cannons 1 | . . . 1 AOE 39 | . 1 12 26 Classes Destroyed 13 | 3 4 3 3 Worker 17 | 2 7 4 4 Builder 11 | . 2 3 6 Tunneler 7 | 4 1 1 1 Hauler 3 | . 1 . 2 Recycler 11 | 1 4 3 3 Operator 2 | . . 1 1 Watcher 5 | . 1 1 3 Swarmer 19 | . . . 19 Grunt 41 | . 12 8 21 Brawler 3 | . . 1 2 Duelist 1 | . . . 1 Protector 1 | . . . 1 Sentry 10 | . . 4 6 Best Kill Streak 13 | 3 3 6 13 Combat Bots Only 11 | . 3 4 11 Max Kills in Single Turn 4 | 2 1 4 4 Gunslinging . | . . . . Exploded 3 | . 1 2 3 Melee 1 | . . . 1 Uniques/NPCs Destroyed . | . . . . Combat | -11 -10 -9 -8 -------- Run | Scr Mat Mat Mat Damage Taken 5395 | . 580 863 3952 Core 965 | . 107 283 575 Absorbed by Shields . | . . . . Core Remaining (%) 62 | 100 57 29 . Volleys Fired 243 | 12 96 32 103 Largest 2 | 2 2 2 2 Hottest 96 | 40 73 80 96 Shots Fired 378 | 24 167 52 135 Gun 270 | 24 159 7 80 Cannon 18 | . . . 18 Launcher 90 | . 8 45 37 Special . | . . . . Kinetic 239 | 24 144 . 71 Thermal 49 | . 15 7 27 Explosive 90 | . 8 45 37 Electromagnetic . | . . . . Robot Hit Streak 15 | 3 10 13 15 Robot Miss Streak 5 | 5 4 3 3 Penetration Max . | . . . . Secondary Targets . | . . . . Shots Hit Robots 251 | 10 100 24 117 Core Hits 216 | 8 41 49 118 Critical Hits 1 | . . . 1 Critical Kills . | . . . . Critical Parts Destroyed 1 | . . . 1 Melee Attacks 55 | . 7 . 48 Impact . | . . . . Slashing 48 | . . . 48 Piercing . | . . . . Sneak Attacks 2 | . . . 2 Combat Hostiles . | . . . . Follow-up Attacks . | . . . . Damage Inflicted 8875 | 179 1665 1853 5178 Guns 2780 | 179 1497 86 1018 Cannons 357 | . . . 357 Explosions 4885 | . 168 1767 2950 Melee 853 | . . . 853 Ramming . | . . . . Kinetic 2573 | 179 1336 . 1058 Thermal 724 | . 161 246 317 Explosive 4725 | . 168 1607 2950 Electromagnetic . | . . . . Impact . | . . . . Slashing 853 | . . . 853 Piercing . | . . . . Highest Corruption 3 | . 1 3 . Average Corruption 2 | . 1 2 . Corruption Purged . | . . . . Effects 12 | . . 12 . Message Errors 2 | . . 2 . Matter Fused 4 | . . 4 . Heat Flow Errors 1 | . . 1 . Energy Discharges 1 | . . 1 . Data Loss (minor) 2 | . . 2 . Targeting Errors 1 | . . 1 . Weapon Failures 1 | . . 1 . Overload Shots . | . . . . Overflow Damage 324 | . 9 90 225 Projectiles . | . . . . Explosions 314 | . 9 90 215 Melee 10 | . . . 10 Knockbacks 6 | . . . 6 Impact . | . . . . Kinetic 6 | . . . 6 Secondary . | . . . . Self-Inflicted Damage 496 | . . 179 317 Shots 19 | . . 6 13 Rammed . | . . . . Targets Rammed . | . . . . Kicked . | . . . . Crushed . | . . . . Highest Temperature 235 | . 235 151 229 Average Temperature 42 | . 39 27 50 Received Heat Transfer 1656 | . 333 108 1215 Effects 1 | . . . 1 Interference 1 | . . . 1 Siege Activations . | . . . . Robots Corrupted . | . . . . Combat Hostiles . | . . . . Parts Fried . | . . . . Impact Corruptions . | . . . . Robots Melted . | . . . . Combat Hostiles . | . . . . Parts Melted 3 | . . 1 2 Heat Transferred 1506 | . 481 359 666 Parts Sabotaged . | . . . . Parts Stolen . | . . . . Parts Stripped . | . . . . Power Chain Reactions . | . . . . Missiles Intercepted . | . . . . Alert | -11 -10 -9 -8 ------- Run | Scr Mat Mat Mat Peak Influence 994 | 35 181 272 994 Average Influence 244 | 15 74 137 536 Maximum Alert Level 3 | . . 1 3 Low Security (%) 74 | 100 100 87 33 Level 1 6 | . . 12 7 Level 2 2 | . . . 7 Level 3 17 | . . . 51 Level 4 . | . . . . Level 5 . | . . . . High Security . | . . . . Max Security . | . . . . Squads Dispatched 16 | . 5 5 6 Investigation 3 | . 1 2 . Extermination . | . . . . Reinforcement 10 | . 4 3 3 Assault 3 | . . . 3 Garrison . | . . . . Intercept . | . . . . Construction Impeded 4 | . . 1 3 Haulers Reinforced . | . . . . Stealth | -11 -10 -9 -8 --------- Run | Scr Mat Mat Mat Distress Signals 5 | . 3 . 2 Communications Jammed . | . . . . Distress Signals . | . . . . Times Spotted 121 | . 26 19 76 Peak Tracking Total 9 | . 5 5 9 Tactical Retreats 10 | . 4 2 4 Traps | -11 -10 -9 -8 ------- Run | Scr Mat Mat Mat Traps Triggered 7 | . 1 2 4 Indirectly . | . . . . Trap Hack Attempts . | . . . . Triggered . | . . . . Disarmed . | . . . . Reprogrammed . | . . . . Reused . | . . . . Traps Extracted . | . . . . Installed . | . . . . Triggered . | . . . . Machines | -11 -10 -9 -8 ---------- Run | Scr Mat Mat Mat Machines Disabled 12 | . 2 6 4 Max in Single Turn 2 | . 1 2 1 Machines Sabotaged . | . . . . Garrisons Compromised . | . . . . Overloaded Fab Kills . | . . . . Fab Network Shutdowns . | . . . . Hacking | -11 -10 -9 -8 --------- Run | Scr Mat Mat Mat Machines Accessed 10 | . 3 5 2 Terminals 6 | . 1 4 1 Fabricators . | . . . . Repair Stations 1 | . 1 . . Recycling Units 1 | . 1 . . Scanalyzers 2 | . . 1 1 Garrison Access . | . . . . Total Hacks 39 | . 7 24 8 Successful 29 | . 5 16 8 Failed 10 | . 2 8 . Catastrophic 1 | . . 1 . Database Lockouts . | . . . . Manual . | . . . . Terminals 14 | . 1 10 3 Fabricators . | . . . . Repair Stations 3 | . 3 . . Recycling Units 3 | . 3 . . Scanalyzers 19 | . . 14 5 Garrison Access . | . . . . Terminal Hacks 7 | . 1 3 3 Record 1 | . . 1 . Prototype ID Bank 1 | . . 1 . Alert Level 1 | . . . 1 Locate Traps 1 | . . 1 . Dispatch Records 1 | . . . 1 Zone Layout 2 | . 1 . 1 Fabricator Hacks . | . . . . Repair Station Hacks 2 | . 2 . . Scan Component 1 | . 1 . . Repair 1 | . 1 . . Recycling Unit Hacks 2 | . 2 . . Recycle Component 1 | . 1 . . Retrieve Components 1 | . 1 . . Scanalyzer 18 | . . 13 5 Insert Component 9 | . . 6 3 Analyze 9 | . . 7 2 Garrison Access Hacks . | . . . . Unauthorized Hacks . | . . . . Terminals . | . . . . Fabricators . | . . . . Repair Stations . | . . . . Recycling Units . | . . . . Scanalyzers . | . . . . Garrison Access . | . . . . Data Cores Recovered . | . . . . Used . | . . . . Hacking Detections 7 | . 2 4 1 Full Trace Events 6 | . 2 3 1 Feedback Events 2 | . 1 1 . Corruption 2 | . 1 1 . Feedback Blocked . | . . . . Robot Schematics Acquired . | . . . . Robots Built . | . . . . Matter . | . . . . Time . | . . . . Total Robot Build Rating . | . . . . Part Schematics Acquired 7 | . . 5 2 Parts Built . | . . . . Matter . | . . . . Time . | . . . . Total Part Build Rating . | . . . . Parts Repaired 1 | . 1 . . Time 38 | . 38 . . Parts Recycled 1 | . 1 . . Recycled Matter . | . . . . Retrieved Matter . | . . . . Retrieved Components 3 | . 3 . . Parts Scanalyzed 8 | . . 6 2 Part Schematics Acquired 7 | . . 5 2 Parts Damaged 1 | . . . 1 Bothacking | -11 -10 -9 -8 ------------ Run | Scr Mat Mat Mat Used RIF Installer . | . . . . Robots Hacked 1 | . 1 . . Non-combat . | . . . . Combat 1 | . 1 . . Robot Hacks Applied 2 | . 2 . . parse_system 2 | . 2 . . Relay Couplers Released . | . . . . Robots Rewired . | . . . . Allies Hacked . | . . . . Hacks Repelled . | . . . . Allies | -11 -10 -9 -8 -------- Run | Scr Mat Mat Mat Total Allies . | . . . . Largest Group . | . . . . Highest-Rated Group . | . . . . Highest-Rated Ally . | . . . . Total Orders . | . . . . Ally Attacks . | . . . . Total Damage . | . . . . Kills . | . . . . Allies Corrupted . | . . . . Allies Melted . | . . . . Intel | -11 -10 -9 -8 ------- Run | Scr Mat Mat Mat Robot Analysis Total . | . . . . Derelict Logs Recovered . | . . . . Drone Launches . | . . . . Drone Recoveries . | . . . . Exploration | -11 -10 -9 -8 ------------- Run | Scr Mat Mat Mat Turns Passed 5084 | 189 1739 1468 1688 Spaces Moved 2717 | 116 774 798 1029 Core 25 | 21 . . 4 Treads 699 | . . 261 438 Legs 1434 | 95 774 454 111 Wheels 83 | . . 83 . Hover . | . . . . Flight 476 | . . . 476 Fastest Speed 30 | 50 120 95 30 Average Speed 124 | 119 135 148 99 Slowest Speed 350 | 150 180 180 350 Overloaded Moves . | . . . . Propulsion Burnouts . | . . . . Robots Hopped . | . . . . Cave-ins Triggered 1 | . . 1 . Exploration Rate (%) 36 | 5 55 45 42 Regions Visited 3 Branch Regions . Pre-discovered Areas . | . . . . Known Exits Taken 1 | . . 1 . Unknown Exits Taken 2 | 1 1 . . Scrap Searched . | . . . . Spaces Dug 22 | . 7 8 7 Terrain Destroyed 601 | . 50 286 265 Melee . | . . . . Projectile 1 | . . . 1 AOE 600 | . 50 286 264 Actions | -11 -10 -9 -8 --------- Run | Scr Mat Mat Mat Total 3966 | 142 1320 1032 1472 Wait 692 | . 390 166 136 Move 2714 | 115 773 797 1029 Hop . | . . . . Pick Up 89 | 8 20 11 50 Fast Attach 14 | . 2 2 10 Attach 61 | 7 3 9 42 Detach 5 | . . 2 3 Swap 45 | . 16 6 23 Drop 48 | . 13 7 28 Fire 243 | 12 96 32 103 Melee 55 | . 7 . 48 Ram . | . . . . Kick . | . . . . Crush . | . . . . Escape Stasis . | . . . . Rewire . | . . . . Trap . | . . . . Miscellaneous . | . . . . Route ------- -11/Scrapyard -10/Materials (discovered 2 exits: *Mat / [*Min]) -9/Materials -8/Materials History --------- Turn | Location | Event 34 | -11/Scrapyard | Discovered new exit (range 16) 190 | -11/Scrapyard | Entered Materials 259 | -10/Materials | Discovered new exit (range 16) 323 | -10/Materials | Build established: Mutant 1432 | -10/Materials | Build established: Scavenger-Mutant 1472 | -10/Materials | Discovered new exit (range 7) 1731 | -10/Materials | Repaired Lgt. Nuclear Core 1929 | -10/Materials | Entered another Materials area 1929 | -9/Materials | Evolved 2 slots: Utility x2 2586 | -9/Materials | Crushed by falling debris 2586 | -9/Materials | Core integrity fell below 50% 2663 | -9/Materials | Discovered new exit (range 14) 3088 | -9/Materials | Build established: Mutant 3396 | -9/Materials | Identified exit to Materials 3397 | -9/Materials | Entered another Materials area 3397 | -8/Materials | Evolved 2 slots: Propulsion x1, Utility x1 3990 | -8/Materials | Destroyed 7 combat bots 4183 | -8/Materials | Destroyed 11 combat bots 4192 | -8/Materials | Lost 8 parts (1p2n2u3w) 4197 | -8/Materials | First assault squad dispatched 4292 | -8/Materials | Lost 3 parts (1n2w) 4389 | -8/Materials | Lost 3 parts (1n1u1w) 4742 | -8/Materials | Core integrity fell below 50% 4834 | -8/Materials | Lost 8 parts (1p2n4u1w) 4910 | -8/Materials | Core integrity fell below 20% 5085 | -8/Materials | Destroyed by L-31 Rogue with Katana Last Messages --------------- [Achievement: Use The Force] 05067_ G-47 Trooper destroyed. 05068_ Acquired 9 matter. 05069_ Imp. Light Armor Plating destroyed. 05071_ Acquired 9 matter. 05071_ Minigun destroyed. 05074_ Acquired 10 matter. 05074_ Lrn. Tractor Beam destroyed. 05077_ G-47 Trooper knocked back. 05077_ I-25 Savior destroyed. 05078_ Imp. Heat Sink destroyed. 05079_ K-01 Serf collects debris. 05079_ Aluminum Leg destroyed. 05080_ Lgt. Nuclear Core destroyed. 05081_ Aluminum Leg destroyed. 05082_ K-01 Serf collects debris. 05083_ Assault Cannon destroyed. 05083_ Imp. Light Armor Plating destroyed. 05085_ K-01 Serf collects debris. [Achievement: 5k Club] Map ----- +----------------------------------------------------+ | ?? ???? #????????????????????????????????????? | | ###+###?# #????????????????????????????????????? | | ?# #???????????""???????????????????????? | | ## ###???????? ????????????????????????? | | ## # ####???#/###???????????????????????? | | !! # # ### #???????????????????????? | | !! # #???????????????????????? | | ! =# % #???????????????????????? | | #===!= #???????????????????????? | | """ #%*[[=# #### #???????????????????????? | | """ #=#%##=[ ## #????????????????????????? | | """ ##=!#===! # #????????????????????????? | | #==# =! # #????????????????????????? | | # ######=# #!* + #????????????????????????? | | ?????# # # #!! # #????????????????????????? | | ??????# # # [ # #????????????????????????? | | #????### # #==% [# #????????????????????????? | | ########## # *[ # # """ ???????????????? | | # # # ???????????????? | | ########## # # # ???????????????? | | ####### # # ######## + ???????????????? | | # # # # ## ### ###########??????????????? | | # + # ######?# # #??????????????? | | # # # ######?# # #??????????????? | | [##### ### ### ##?# # = #??????????????? | | ### # # ######## #@%==m #??????????????? | | ####### =#glgg #??????????????? | | + %+[g!* """ #??????????????? | | ####### % "%#k" " """ #??????????????? | | ## # ## ######## "# """ """ #??????????????? | | ##########+########## ###########??????????????? | | ??????### # # !!##????????????????????? | | ????????# # ] T # !#????????????????????? | | ????????# [# # !#????????????????????? | | ???###### # + #????????????????????? | | ??? ## # # !#????????????????????? | | ??? ## # # !!##????????????????????? | | ??? ## ######## #####????????????????????? | | ??? ## #??????# #????????????????????????? | | ??? ## #??????# #????????????????????????? | | ??? #######??????# #????????????????????????? | | ??? #??########### ##########???????????????? | | ??? #??# # # =#???????????????? | | ??? #??# # # ! #???????????????? | | ???+####??# # #% #???????????????? | | ??? #????# """ """ # * #== #???????????????? | | ??? #????# """ """ # +* % #???????????????? | | ??? #????# """ """ # % #%%= * #???????????????? | | ??????????# + %# ! #???????????????? | | ??????????# # =|# #???????????????? | +----------------------------------------------------+ Best States ------------- Heat Dissipation 45 Energy Generation 14 Energy Capacity 265 Matter Stores 500 Matter Capacity 500 Sight Range 16 Robot Scan Range 13 Terrain Scan Density 10 Armor Coverage 525 Power Shielding 66 Evasion (%) 70 Recoil Reduction 3 Item Schematics ----------------- Mining Claw | -9/Materials | Scanalyzed Aluminum Leg | -9/Materials | Scanalyzed Grenade Launcher | -9/Materials | Scanalyzed Imp. Ion Engine | -9/Materials | Scanalyzed Rocket Launcher | -9/Materials | Scanalyzed Imp. Treads | -8/Materials | Scanalyzed Imp. Assault Rifle | -8/Materials | Scanalyzed Robot Schematics ------------------ None Fabricated ------------ Nothing Alien Tech Used ----------------- None Achievements -------------- 5k Club I Spy Let's See Who's Tougher Loot Pinata Novice Programmer One Hack Too Far Oops Part-time Mechanic Remodeling Safety First Significant Disruption Storm Trooper Uninvited Guest Unlikely Earthworm Use The Force Challenges ------------ None Game ------ Seed RemoteWarpScreen Manual? 0 Play Time 01:52:22 Cumulative 4.7 hours Start 2020.07.23 @ 14:19:58 End 2020.07.23 @ 22:40:46 Sessions 1 Manual Loads 0 Difficulty Rogue Special Mode None Game No. 5 Rogue 5 Adventurer 0 Explorer 0 Win Type - Total 0 Types 0/0/0/0/0/0/0 Lore% 0 Gallery% 7 Achievement% 7 Wizard Run 0 Options --------- ASCII 0 Keyboard 0 Movement Mouse Keybinds 0 Fullscreen 2 Font 18/Terminus Map View 76x50 Tactical HUD 1 Map Filters NONE Filters NONE Steam 1 RUN: 33b5351a-e0c4-4ecb-8fee-7e7fcff8057f